bitfinex-derivatives/quotes_SOLF0:USTF0_20220104
["timestamp","ask_amount","ask_price","bid_price","bid_amount"]
[1641311985719,3.28662249,172.19,172.11,3.0]
[1641311986117,3.28662249,172.19,172.12,1.7325115]
[1641311986718,17.53486007,172.19,172.12,1.7325115]
[1641311986919,17.53486007,172.19,172.09,1.7325115]
[1641311987520,17.53486007,172.19,172.11,3.0]
[1641311987521,27.66479,172.17,172.11,3.0]
[1641311988322,3.28662249,172.16,172.12,1.7325115]
[1641311989524,27.66479,172.18,172.12,1.7325115]
[1641311989723,17.53515792,172.2,172.12,1.7325115]
[1641311989924,3.28662249,172.17,172.12,1.7325115]
[1641311990727,4.889,172.18,172.1,4.7325115]
[1641311991129,4.889,172.18,172.1,1.7325115]
[1641311991332,3.28662249,172.17,172.11,1.7325115]
[1641311991830,3.28662249,172.17,172.1,1.7325115]
[1641311992031,1.58013412,172.16,172.11,4.03760079]
[1641311992230,1.58013412,172.16,172.11,7.03760079]
[1641311992829,3.28662249,172.15,172.12,1.7325115]
[1641311993031,15.60700718,172.15,172.12,1.7325115]
[1641311993230,15.60700718,172.15,172.13,3.0]
[1641311993630,1.58013412,172.14,172.13,7.03760079]
[1641311993833,4.86675661,172.14,172.13,7.03760079]
[1641311994130,4.86675661,172.14,172.13,8.76992925]
[1641311994932,3.28662249,172.14,172.13,4.73232846]
[1641311995131,3.28662249,172.14,172.13,7.25926688]
[1641311995430,3.28662249,172.17,172.13,7.25926688]
[1641311995630,3.28662249,172.17,172.13,11.36586753]
[1641311995631,1.57968206,172.14,172.13,11.36586753]
[1641311995931,1.57968206,172.14,172.13,9.63353907]
[1641311996331,15.606127,172.17,172.13,9.63353907]
[1641311996533,3.28662249,172.14,172.13,6.63353907]
[1641311996931,3.28662249,172.15,172.13,9.63353907]
[1641311997131,1.57964428,172.14,172.13,7.10660065]
[1641311997633,4.86626677,172.14,172.13,7.10660065]
[1641311997930,3.28662249,172.14,172.13,9.63353907]
[1641311998332,4.8665949,172.14,172.13,3.0]
[1641311999735,3.28662249,172.14,172.13,3.0]
[1641311999936,3.28662249,172.14,172.13,9.63352331]
[1641312000335,12.32052781,172.17,172.13,9.63352331]
[1641312000537,27.66479,172.19,172.13,3.0]
[1641312001442,27.66479,172.19,172.1,27.66479]
[1641312001638,3.2852143,172.14,172.1,27.66479]
[1641312003639,12.31966158,172.16,172.1,27.66479]
[1641312005242,12.31966158,172.16,172.09,5.612]
[1641312006542,12.31966158,172.16,172.1,27.66479]
[1641312007042,12.31966158,172.16,172.09,5.612]
[1641312007241,12.31966158,172.16,172.08,12.31966158]
[1641312008644,39.98445158,172.2,172.1,27.66479]
[1641312009546,39.98445158,172.2,172.08,12.31966158]
[1641312009746,14.24813063,172.19,172.08,12.31966158]
[1641312009945,14.24813063,172.19,172.08,9.73966158]
[1641312010146,14.24813063,172.19,172.08,3.65966158]
[1641312010845,14.24813063,172.19,172.07,27.66479]
[1641312011246,14.24813063,172.19,172.09,1.73281123]
[1641312011448,27.66479,172.2,172.08,1.73281123]
[1641312012747,60.3148,172.21,172.08,1.73281123]
[1641312013048,14.24787924,172.2,172.06,1.73281123]
[1641312013448,27.66479,172.18,172.06,1.73281123]
[1641312015250,7.14226827,172.17,172.07,2.51944576]
[1641312015450,7.14226827,172.17,172.09,27.66479]
[1641312015749,7.14226827,172.17,172.1,1.73281123]
[1641312015951,7.14226827,172.17,172.03,186.389]
[1641312016151,11.38726827,172.17,172.03,122.3068]
[1641312016552,11.38726827,172.17,171.91,82.1310772]
[1641312016751,16.15490146,172.16,171.97,184.5983]
[1641312016950,11.38726827,172.17,171.97,184.5983]
[1641312017554,27.66479,172.13,172.02,1.54223598]
[1641312017753,32.77679,172.13,172.09,3.0]
[1641312017953,3.28587676,172.12,172.06,3.0]
[1641312018154,3.28587676,172.12,172.02,1.54223598]
[1641312018356,3.28587676,172.12,172.07,1.54223598]
[1641312018555,3.28587676,172.12,172.04,3.0]
[1641312018758,3.28587676,172.12,172.02,3.0]
[1641312018957,3.28587676,172.12,172.01,32.85243088]
[1641312019158,7.28587676,172.12,172.01,32.85243088]
[1641312019456,23.40596743,172.12,172.01,32.85243088]
[1641312019656,27.66479,172.02,172.01,32.85243088]
[1641312019858,34.19479,172.02,172.01,32.85243088]
[1641312020060,34.19479,172.02,172.01,17.82831875]
[1641312020256,34.19479,172.02,171.93,3.0]
[1641312020457,37.48066676,172.02,171.91,82.1310772]
[1641312020756,37.48066676,172.02,171.96,29.57864632]
[1641312020958,37.48066676,172.02,171.99,4.10294287]
[1641312020959,3.28587676,172.01,171.99,4.10294287]
[1641312021157,3.28587676,172.01,171.91,3.0]
[1641312021357,3.28587676,172.01,171.87,64.6548]
[1641312021558,27.66479,171.95,171.89,3.0]
[1641312021756,32.82379,171.95,171.87,3.0]
[1641312022157,32.82379,171.95,171.86,27.66479]
[1641312022560,32.82379,171.95,171.88,3.0]
[1641312022757,32.82379,171.95,171.86,27.66479]
[1641312022958,27.66479,171.95,171.86,27.66479]
[1641312023157,27.66479,171.95,171.87,3.0]
[1641312023358,27.66479,171.95,171.86,27.66479]
[1641312023558,10.68363301,171.94,171.87,3.0]
[1641312023858,13.97197928,171.94,171.87,3.0]
[1641312024060,13.97197928,171.94,171.86,27.66479]
[1641312024358,10.68363301,171.94,171.86,27.66479]
[1641312024660,2.16753484,171.93,171.86,27.66479]
[1641312025360,2.16753484,171.92,171.87,3.0]
[1641312026061,2.16753484,171.91,171.87,3.0]
[1641312026561,2.16753484,171.91,171.86,27.66479]
[1641312026761,2.16753484,171.9,171.86,27.66479]
[1641312026962,2.16753484,171.9,171.8,3.0]
[1641312027466,2.16753484,171.89,171.83,3.0]
[1641312027662,2.16753484,171.89,171.84,3.0]
[1641312028063,2.16753484,171.88,171.84,5.08309785]
[1641312028662,2.16753484,171.88,171.84,2.08309785]
[1641312028862,2.16753484,171.88,171.84,5.08309785]
[1641312029063,2.16753484,171.88,171.84,2.08309785]
[1641312029263,2.16928436,171.87,171.85,3.0]
[1641312029465,2.16928436,171.87,171.82,27.66479]
[1641312029664,2.16928436,171.87,171.82,30.66479]
[1641312029969,27.66479,171.91,171.85,3.0]
[1641312030167,27.66479,171.91,171.82,27.66479]
[1641312030568,27.66479,171.91,171.86,3.0]
[1641312030772,27.66479,171.91,171.82,27.66479]
[1641312031369,27.66479,171.91,171.82,30.66479]
[1641312031567,27.66479,171.91,171.83,3.0]
[1641312031768,27.66479,171.91,171.84,3.0]
[1641312031968,27.66479,171.91,171.82,27.66479]
[1641312032170,27.66479,171.91,171.85,3.0]
[1641312032673,27.66479,171.91,171.82,27.66479]
[1641312032872,36.56479,171.95,171.87,3.0]
[1641312033072,36.56479,171.95,171.85,6.213]
[1641312033272,36.56479,171.95,171.87,3.0]
[1641312033473,3.28843674,171.94,171.87,3.0]
[1641312033672,3.28843674,171.94,171.83,119.8671]
[1641312033872,27.66479,171.92,171.87,3.0]
[1641312034273,27.66479,171.92,171.83,119.8671]
[1641312034472,27.66479,171.92,171.87,3.0]
[1641312035177,27.66479,171.92,171.88,1.04767185]
[1641312037075,27.66479,171.92,171.84,1.04767185]
[1641312037274,27.66479,171.92,171.85,3.0]
[1641312037879,27.66479,171.92,171.86,1.0478828]
[1641312038480,27.66479,171.92,171.86,4.0478828]
[1641312038680,27.66479,171.92,171.86,1.0478828]
[1641312038880,27.66479,171.92,171.85,3.0]
[1641312039281,27.66479,171.92,171.86,1.0478828]
[1641312040084,27.66479,171.92,171.86,4.0478828]
[1641312040286,3.28893209,171.91,171.86,1.0478828]
[1641312040682,27.66479,171.92,171.85,3.0]
[1641312041185,27.66479,171.92,171.86,4.0478828]
[1641312041585,27.66479,171.92,171.87,4.0478828]
[1641312041986,27.66479,171.92,171.87,7.1608828]
[1641312042187,27.66479,171.92,171.88,1.0478828]
[1641312042587,3.28886218,171.91,171.88,1.0478828]
[1641312042987,3.28886218,171.91,171.84,1.0478828]
[1641312043388,36.56479,171.95,171.84,1.0478828]
[1641312043587,36.56479,171.95,171.84,5.5158828]
[1641312043787,3.28884543,171.94,171.84,5.5158828]
[1641312043988,3.28884543,171.94,171.87,3.0]
[1641312044188,3.28884543,171.94,171.85,1.0478828]
[1641312044389,3.28884543,171.94,171.86,3.0]
[1641312044689,3.28884543,171.94,171.87,1.0478828]
[1641312045490,12.08635394,171.88,171.87,1.0478828]
[1641312046289,12.08635394,171.88,171.87,4.0478828]
[1641312046588,12.08635394,171.88,171.87,3.0]
[1641312046789,12.08635394,171.88,171.87,4.0478828]
[1641312047089,32.23027716,171.92,171.87,4.0478828]
[1641312047489,32.23027716,171.92,171.87,1.0478828]
[1641312047894,32.23027716,171.92,171.88,3.0]
[1641312048392,12.33304651,171.9,171.88,3.0]
[1641312048595,12.33304651,171.9,171.87,5.161]
[1641312048596,12.33304651,171.9,171.89,1.0478828]
[1641312048891,6.81,171.9,171.85,3.0]
[1641312049293,6.81,171.9,171.84,1.0478828]
[1641312049493,6.81,171.9,171.86,1.0478828]
[1641312049694,2.17244211,171.89,171.86,2.98664368]
[1641312049894,2.17244211,171.89,171.86,5.98664368]
[1641312050095,2.17244211,171.89,171.86,2.98664368]
[1641312050297,2.17244211,171.89,171.87,1.0478828]
[1641312050897,12.33265826,171.9,171.87,1.0478828]
[1641312051298,12.33265826,171.9,171.85,3.0]
[1641312051497,12.33378854,171.89,171.87,3.0]
[1641312051699,12.33378854,171.89,171.86,1.0478828]
[1641312051898,12.33378854,171.89,171.87,3.0]
[1641312052300,12.33378854,171.89,171.85,3.0]
[1641312052497,2.17253189,171.9,171.88,1.0478828]
[1641312053101,2.17253189,171.9,171.87,1.93877849]
[1641312053500,2.17253189,171.9,171.88,1.0478828]
[1641312053901,12.33307553,171.9,171.88,1.0478828]
[1641312054302,20.97307553,171.9,171.83,1.0478828]
[1641312054501,26.89907553,171.9,171.83,1.0478828]
[1641312054803,3.2893016,171.89,171.83,1.0478828]
[1641312056102,27.66479,171.88,171.83,1.0478828]
[1641312056403,29.83765536,171.88,171.83,1.0478828]
[1641312056804,29.83765536,171.88,171.81,3.0]
[1641312057103,29.83765536,171.88,171.82,1.0478828]
[1641312057303,3.28962948,171.87,171.82,1.0478828]
[1641312057906,5.46249484,171.87,171.82,1.0478828]
[1641312058308,2.17286536,171.87,171.82,1.0478828]
[1641312058506,44.62067161,171.88,171.82,1.0478828]
[1641312058708,3.28978956,171.86,171.79,1.0478828]
[1641312058905,8.10078956,171.86,171.79,1.0478828]
[1641312059105,4.811,171.86,171.77,1.0478828]
[1641312059707,3.28978956,171.85,171.77,1.0478828]
[1641312059906,3.28978956,171.85,171.78,1.9331037]
[1641312060106,27.66479,171.81,171.78,1.9331037]
[1641312060407,32.40279,171.81,171.78,1.9331037]
[1641312060606,32.40279,171.81,171.79,1.0478828]
[1641312061212,12.30130358,171.84,171.79,6.3958828]
[1641312061607,12.3375547,171.85,171.8,1.9331037]
[1641312061907,12.3375547,171.85,171.8,2.9809865]
[1641312062207,12.3375547,171.85,171.8,5.9809865]
[1641312062408,12.3375547,171.85,171.81,1.0478828]
[1641312062811,12.3375547,171.86,171.81,1.0478828]
[1641312063611,12.3375547,171.85,171.81,1.0478828]
[1641312063814,12.3375547,171.85,171.81,4.0478828]
[1641312064113,12.3375547,171.86,171.82,1.93853454]
[1641312064411,12.3375547,171.86,171.82,2.98641734]
[1641312064611,12.3375547,171.86,171.82,5.98641734]
[1641312064811,12.3375547,171.86,171.83,1.0478828]
[1641312066212,12.3375547,171.86,171.84,3.0]
[1641312066613,12.3375547,171.86,171.85,1.0478828]
[1641312067014,12.3375547,171.86,171.85,6.2098828]
[1641312067414,12.3375547,171.87,171.85,6.2098828]
[1641312068014,12.3375547,171.87,171.86,1.0478828]
[1641312068914,12.3375547,171.87,171.8,13.13423674]
[1641312069316,8.53759484,171.87,171.83,3.0]
[1641312069717,8.53759484,171.87,171.84,1.0478828]
[1641312070118,8.53759484,171.87,171.84,4.0478828]
[1641312070317,12.33674912,171.86,171.84,1.0478828]
[1641312070518,12.33674912,171.86,171.85,1.0478828]
[1641312071019,12.33674912,171.86,171.85,3.0]
[1641312071521,12.33674912,171.86,171.85,4.0478828]
[1641312072219,12.33674912,171.87,171.85,4.0478828]
[1641312072419,12.33674912,171.87,171.86,3.0]
[1641312072819,12.33674912,171.87,171.86,4.0478828]
[1641312073120,67.66632912,171.88,171.86,4.0478828]
[1641312073520,67.66632912,171.88,171.86,1.0478828]
[1641312073721,8.64,171.9,171.87,3.0]
[1641312073921,8.9,171.95,171.89,3.0]
[1641312074120,8.9,171.95,171.92,3.0]
[1641312074321,3.28862111,171.94,171.92,4.699]
[1641312074620,8.9,171.95,171.93,4.0478828]
[1641312075021,8.9,171.95,171.94,3.0]
[1641312075220,8.9,171.95,171.94,4.0478828]
[1641312077622,12.18806046,171.95,171.94,4.0478828]
[1641312078322,8.9,171.95,171.94,4.0478828]
[1641312084131,14.446,171.95,171.94,4.0478828]
[1641312084333,5.546,171.95,171.94,4.0478828]
[1641312084535,19.98687674,172.03,171.94,34.7126728]
[1641312084833,19.98687674,172.03,172.02,3.0]
[1641312085333,8.52461383,172.03,172.02,4.0478828]
[1641312086335,8.52461383,172.05,172.02,4.0478828]
[1641312086634,8.52461383,172.05,172.03,1.0478828]
[1641312087236,8.52461383,172.05,172.04,3.0]
[1641312087834,8.52461383,172.05,172.04,4.0478828]
[1641312089541,10.2922656,172.05,172.04,7.0478828]
[1641312089739,10.2922656,172.05,172.04,4.0478828]
[1641312091741,10.2922656,172.05,172.04,7.0478828]
[1641312092743,10.2922656,172.05,172.04,4.0478828]
[1641312092944,10.2922656,172.05,172.04,7.0478828]
[1641312093444,1.76765177,172.05,172.04,7.0478828]
[1641312094546,34.62744292,172.08,172.04,7.0478828]
[1641312094849,34.62744292,172.08,172.07,3.0]
[1641312095446,32.85979115,172.08,172.07,4.0478828]
[1641312096949,32.85979115,172.09,172.07,4.0478828]
[1641312097550,32.85979115,172.09,172.08,1.0478828]
[1641312098051,32.85979115,172.09,172.08,4.0478828]
[1641312098251,8.64,172.11,172.08,4.0478828]
[1641312098450,8.64,172.11,172.08,1.0478828]
[1641312100056,3.28572412,172.1,172.08,1.0478828]
[1641312104057,1.76670212,172.09,172.08,1.0478828]
[1641312104357,5.05242624,172.09,172.08,4.0478828]
[1641312104757,5.05242624,172.09,172.08,0.0078828]
[1641312104958,5.05242624,172.09,172.06,4.10616585]
[1641312105261,10.76242624,172.09,172.06,4.10616585]
[1641312105458,1.76670212,172.08,172.06,4.10616585]
[1641312106258,1.76670212,172.08,172.07,0.8249658]
[1641312106658,4.75881932,172.08,172.05,4.10616585]
[1641312106858,2.9921172,172.07,172.05,4.10616585]
[1641312107059,27.66479,172.06,172.01,12.32097741]
[1641312107460,27.66479,172.06,171.98,12.32097741]
[1641312108060,27.66479,172.06,171.99,0.66082133]
[1641312108661,12.32447053,172.04,171.99,0.66082133]
[1641312109261,12.32447053,172.04,171.98,0.66082133]
[1641312109462,16.95547053,172.05,171.98,0.66082133]
[1641312109862,16.95547053,172.05,171.97,12.98179874]
[1641312110265,12.32447053,172.02,171.98,0.66082133]
[1641312110665,12.32447053,172.02,171.96,0.66082133]
[1641312111765,12.32447053,172.01,171.96,0.66082133]
[1641312111965,16.45447053,172.01,171.96,0.66082133]
[1641312112365,16.45447053,172.01,171.94,0.66082133]
[1641312113167,27.66479,172.0,171.94,0.66082133]
[1641312115473,12.32447053,171.99,171.94,0.66082133]
[1641312115873,12.32447053,171.99,171.91,12.32097741]
[1641312115874,12.32447053,171.99,171.92,0.66082133]
[1641312116172,27.66479,172.0,171.95,12.32097741]
[1641312116371,5.57886931,172.08,171.99,3.0]
[1641312116571,48.49595995,172.11,172.04,7.0]
[1641312116772,66.66384651,172.22,172.21,3383.72498682]
[1641312116971,66.66384651,172.22,172.21,3391.06898682]
[1641312117172,49.28268029,172.25,172.21,3447.05938815]
[1641312117371,49.28268029,172.25,172.24,3.0]
[1641312117976,123.19661581,172.42,172.24,3.66082133]
[1641312118172,8.64,172.43,172.32,3.0]
[1641312118372,8.64,172.43,172.3,6.225]
[1641312118572,2.9921172,172.4,172.3,6.225]
[1641312119174,8.64,172.43,172.36,27.66479]
[1641312119376,22.962741,172.49,172.36,27.66479]
[1641312119575,4.63765442,172.51,172.36,27.66479]
[1641312119974,13.21765442,172.51,172.36,27.66479]
[1641312120174,1.43870449,172.5,172.37,10.28809844]
[1641312120577,8.58,172.51,172.39,3.0]
[1641312120974,8.58,172.51,172.41,3.0]
[1641312121176,31.66479,172.5,172.37,8.97888754]
[1641312121375,25.10464224,172.5,172.37,8.97888754]
[1641312121574,4.0,172.47,172.37,8.97888754]
[1641312121975,3.28041743,172.46,172.36,27.66479]
[1641312122775,3.28041743,172.48,172.37,3.0]
[1641312122975,3.28041743,172.48,172.36,27.66479]
[1641312123176,3.28041743,172.48,172.42,27.66479]
[1641312124176,3.28041743,172.49,172.42,27.66479]
[1641312124578,16.58537616,172.49,172.42,27.66479]
[1641312124977,3.28041743,172.5,172.42,27.66479]
[1641312125178,3.28041743,172.5,172.45,27.66479]
[1641312125377,3.28041743,172.49,172.45,30.66479]
[1641312125778,3.28041743,172.48,172.45,27.66479]
[1641312126481,3.28041743,172.47,172.45,27.66479]
[1641312126979,3.28041743,172.46,172.45,27.66479]
[1641312127379,16.1713563,172.58,172.45,27.66479]
[1641312127781,14.1983563,172.58,172.45,27.66479]
[1641312127981,4.63665829,172.54,172.45,27.66479]
[1641312128183,86.15357528,172.6,172.45,27.66479]
[1641312128583,90.15357528,172.6,172.45,27.66479]
[1641312128784,0.87014462,172.59,172.45,9.66479]
[1641312128984,0.87014462,172.59,172.55,49.19060981]
[1641312129185,0.87014462,172.59,172.55,16.33081866]
[1641312129385,0.87014462,172.59,172.55,12.33081866]
[1641312129586,0.87014462,172.59,172.55,8.33081866]
[1641312129785,0.87014462,172.59,172.52,27.66479]
[1641312130187,4.0,172.57,172.42,81.08357424]
[1641312130386,4.0,172.53,172.42,74.10357424]
[1641312130586,10.458,172.53,172.42,74.10357424]
[1641312130787,0.87014462,172.52,172.42,74.10357424]
[1641312130988,89.87014462,172.52,172.35,3.0]
[1641312131188,27.66479,172.51,172.4,27.66479]
[1641312131787,0.87014462,172.5,172.3,3.0]
[1641312131989,4.0,172.49,172.28,3.0]
[1641312132187,8.45,172.49,172.31,3.28116825]
[1641312132789,0.87014462,172.48,172.3,3.0]
[1641312133088,0.87014462,172.48,172.4,3.0]
[1641312133292,0.87014462,172.48,172.47,27.66479]
[1641312133589,0.87014462,172.49,172.47,27.66479]
[1641312134191,0.87014462,172.49,172.37,3.0]
[1641312134589,0.87014462,172.49,172.36,3.0]
[1641312134789,0.87014462,172.49,172.38,3.27887719]
[1641312135191,0.87014462,172.49,172.37,3.0]
[1641312135390,0.87014462,172.52,172.43,27.66479]
[1641312135990,4.63799437,172.49,172.43,27.66479]
[1641312136192,11.41199437,172.49,172.43,27.66479]
[1641312136490,5.50840246,172.48,172.4,27.66479]
[1641312136890,5.50840246,172.48,172.4,9.66479]
[1641312137090,4.63883386,172.46,172.41,3.27953463]
[1641312137491,0.87014462,172.45,172.4,9.66479]
[1641312137693,5.22614462,172.45,172.4,9.66479]
[1641312138293,0.87014462,172.44,172.4,9.66479]
[1641312138895,0.87014462,172.44,172.35,24.29608936]
[1641312139096,0.87014462,172.44,172.19,102.4804371]
[1641312139097,4.64017622,172.41,172.22,3.0]
[1641312139297,27.66479,172.3,172.21,27.66479]
[1641312139497,32.21979,172.3,172.25,3.28119274]
[1641312139897,4.555,172.3,172.25,3.28119274]
[1641312140898,4.555,172.3,172.23,22.96907221]
[1641312141500,0.87249892,172.29,172.22,22.96907221]
[1641312141699,0.87249892,172.29,172.24,6.28119274]
[1641312141899,0.87249892,172.29,172.24,3.28119274]
[1641312142199,0.87249892,172.32,172.25,3.28119274]
[1641312142400,0.87249892,172.32,172.25,1.58119274]
[1641312142602,3.0,172.31,172.21,7.22598274]
[1641312143401,3.0,172.31,172.22,17.32655342]
[1641312143803,1.85661311,172.3,172.22,20.60787963]
[1641312144202,1.85661311,172.3,172.22,3.28132621]
[1641312144802,6.94761311,172.3,172.22,3.28132621]
[1641312145002,5.091,172.3,172.22,3.28132621]
[1641312145402,1.85661311,172.29,172.22,3.28132621]
[1641312146502,1.85661311,172.32,172.22,3.28132621]
[1641312146904,3.0,172.31,172.22,3.28132621]
[1641312147302,1.85661311,172.32,172.22,3.28132621]
[1641312147503,1.85661311,172.3,172.22,3.28132621]
[1641312147903,1.85661311,172.32,172.22,20.60452915]
[1641312149102,1.85661311,172.32,172.22,3.28132621]
[1641312151409,2.12926209,172.31,172.22,3.28132621]
[1641312151609,3.0,172.28,172.22,3.28132621]
[1641312151808,27.66479,172.29,172.22,3.28132621]
[1641312152208,1.85661311,172.28,172.14,3.0]
[1641312152411,1.85661311,172.28,172.13,20.60756356]
[1641312152708,2.12926209,172.27,172.15,20.60756356]
[1641312152909,8.31226209,172.27,172.15,20.60756356]
[1641312153210,1.85661311,172.26,172.15,20.60756356]
[1641312154011,1.85661311,172.28,172.15,20.60756356]
[1641312154212,1.85661311,172.28,172.18,27.66479]
[1641312154411,4.85661311,172.28,172.18,27.66479]
[1641312154612,4.85661311,172.28,172.16,14.11258664]
[1641312154613,12.16447451,172.24,172.16,14.11258664]
[1641312154812,17.68047451,172.24,172.16,14.11258664]
[1641312155013,17.68047451,172.24,172.19,3.28132621]
[1641312155413,1.85661311,172.23,172.17,3.28132621]
[1641312155612,12.16447451,172.2,172.17,3.28132621]
[1641312155812,12.16447451,172.2,172.16,1.94811213]
[1641312156614,12.16447451,172.21,172.16,1.94811213]
[1641312158012,10.63557001,172.25,172.15,27.66479]
[1641312158213,49.2182796,172.24,172.17,17.33334217]
[1641312158613,49.2182796,172.25,172.17,17.33334217]
[1641312158813,49.2182796,172.25,172.16,17.33334217]
[1641312159013,54.6472796,172.25,172.15,27.66479]
[1641312159216,1.85725662,172.24,172.15,27.66479]
[1641312159415,1.85725662,172.24,172.15,30.66479]
[1641312159613,1.85725662,172.24,172.16,17.33403197]
[1641312160013,32.82662939,172.18,172.16,17.33403197]
[1641312163717,5.624,172.18,172.16,17.33403197]
[1641312164521,2.15465275,172.17,172.16,17.33403197]
[1641312165319,2.15465275,172.17,172.15,27.66479]
[1641312167425,2.15465275,172.17,172.15,13.24479]
[1641312168229,4.06482615,172.19,172.15,13.24479]
[1641312168626,4.06482615,172.19,172.06,66.73642615]
[1641312168834,4.06482615,172.19,172.06,69.73642615]
[1641312169027,4.06482615,172.18,172.06,62.6716]
[1641312169226,4.06482615,172.18,172.07,17.33643337]
[1641312169426,4.06482615,172.18,172.07,20.33643337]
[1641312169626,4.06482615,172.18,172.08,3.0]
[1641312170026,4.06482615,172.16,172.09,17.33643337]
[1641312170227,10.72482615,172.16,172.09,17.33643337]
[1641312170427,10.72482615,172.16,172.1,27.66479]
[1641312171026,10.72482615,172.16,172.11,20.6194228]
[1641312173331,10.72482615,172.16,172.12,3.0]
[1641312173530,10.72482615,172.16,172.11,20.6194228]
[1641312174132,10.72482615,172.16,172.11,23.6194228]
[1641312174331,4.06482615,172.16,172.15,27.66479]
[1641312174732,4.06482615,172.16,172.15,48.2842128]
[1641312174934,12.19635208,172.2,172.15,48.2842128]
[1641312175135,8.71764528,172.2,172.15,48.2842128]
[1641312175336,32.52360555,172.17,172.15,48.2842128]
[1641312175735,32.52360555,172.17,172.16,20.6194228]
[1641312175939,32.52360555,172.21,172.16,20.6194228]
[1641312176539,1.85681901,172.2,172.16,3.28298943]
[1641312176739,6.40881901,172.2,172.16,3.28298943]
[1641312176940,32.52360555,172.19,172.16,3.28298943]
[1641312177741,32.52360555,172.18,172.16,3.28298943]
[1641312178341,32.52360555,172.18,172.11,20.62668086]
[1641312180344,32.52360555,172.17,172.11,20.62668086]
[1641312182545,27.66479,172.12,172.11,3.28298943]
[1641312182748,33.94179,172.12,172.11,3.28298943]
[1641312182952,66.46539555,172.12,172.07,3.28298943]
[1641312183148,38.80060555,172.12,172.07,3.28298943]
[1641312183949,38.80060555,172.12,172.03,20.63067914]
[1641312184161,32.52360555,172.12,172.08,3.0]
[1641312184450,49.2182796,172.13,172.09,3.0]
[1641312184650,49.2182796,172.13,172.1,27.66479]
[1641312185050,7.96e-05,172.13,172.1,57.06746914]
[1641312185250,7.96e-05,172.13,172.1,54.06746914]
[1641312185453,7.96e-05,172.13,172.11,23.63067914]
[1641312185650,82.030466,172.18,172.12,3.0]
[1641312185850,25.68739693,172.22,172.13,3.0]
[1641312186351,1.85666228,172.21,172.14,20.63067914]
[1641312186851,1.85666228,172.21,172.13,27.66479]
[1641312187150,1.85666228,172.21,172.14,3.28298943]
[1641312187350,1.85666228,172.21,172.14,1.06298943]
[1641312187750,1.85666228,172.21,172.06,3.0]
[1641312187950,1.85666228,172.21,172.07,3.0]
[1641312188152,3.0,172.2,172.06,3.0]
[1641312188552,1.85666228,172.19,172.08,27.66479]
[1641312188953,1.85666228,172.19,172.09,3.28359985]
[1641312190956,12.31429936,172.12,172.09,3.28359985]
[1641312191159,17.31629936,172.12,172.09,3.28359985]
[1641312191559,5.002,172.12,172.09,3.28359985]
[1641312191758,5.002,172.12,172.05,3.28359985]
[1641312192157,6.327,172.16,172.03,3.28359985]
[1641312192358,66.968426,172.18,172.03,6.28359985]
[1641312192556,27.66479,172.15,172.05,27.66479]
[1641312192758,12.31652307,172.08,172.05,30.66479]
[1641312192957,1.765126,172.15,172.07,3.0]
[1641312193162,1.765126,172.15,172.07,4.581]
[1641312193361,1.76368598,172.16,172.14,3.0]
[1641312193557,12.31069932,172.17,172.15,3.0]
[1641312193758,11.4464076,172.25,172.16,3.0]
[1641312194058,11.4464076,172.25,172.2,3.0]
[1641312194258,11.4464076,172.25,172.2,6.422]
[1641312194558,11.4464076,172.25,172.24,27.66479]
[1641312194757,1.65168848,172.27,172.24,33.01579]
[1641312194957,1.65168848,172.27,172.24,36.29938985]
[1641312195359,1.65168848,172.27,172.25,3.28359985]
[1641312196158,2.52206022,172.26,172.25,3.28359985]
[1641312196559,2.52206022,172.26,172.25,1.04359985]
[1641312196960,7.03006022,172.26,172.25,1.04359985]
[1641312197160,4.508,172.26,172.13,3.0]
[1641312197360,4.508,172.26,172.12,66.0963]
[1641312197560,2.74682556,172.25,172.17,3.28264137]
[1641312197962,3.0,172.23,172.17,3.28264137]
[1641312198162,3.0,172.22,172.17,3.28264137]
[1641312198362,3.0,172.21,172.07,32.82662939]
[1641312198564,27.66479,172.19,172.13,3.28334438]
[1641312198962,27.66479,172.19,172.09,27.66479]
[1641312199564,3.28382957,172.18,172.1,3.06868722]
[1641312200265,36.12408291,172.18,172.1,3.06868722]
[1641312200466,32.84025334,172.18,172.1,3.06868722]
[1641312200864,3.28382957,172.17,172.1,3.06868722]
[1641312201867,3.28382957,172.18,172.1,3.06868722]
[1641312203171,39.12408291,172.18,172.1,3.06868722]